bitfinex-derivatives/quotes_SOLF0:USTF0_20250603
["timestamp","ask_amount","ask_price","bid_price","bid_amount"]
[1748967599349,15.76800271,161.69,161.64,3.64100454]
[1748967599550,15.76800271,161.69,161.66,6.1815]
[1748967599754,15.76800271,161.69,161.64,3.64100454]
[1748967599958,4.92745947,161.7,161.63,3.64100454]
[1748967600164,0.04641874,161.68,161.65,0.03924772]
[1748967600460,0.04641874,161.68,161.65,2.00186847]
[1748967600657,0.04641874,161.68,161.67,6.1814]
[1748967604056,0.04641874,161.68,161.66,6.1816]
[1748967604560,0.04641874,161.68,161.65,0.03924772]
[1748967604756,0.04641874,161.68,161.67,6.1814]
[1748967605068,9.63362145,161.68,161.65,0.03924772]
[1748967605456,14.55632461,161.68,161.65,0.03924772]
[1748967605658,9.58720271,161.66,161.65,0.03924772]
[1748967605962,15.76900271,161.66,161.65,0.03924772]
[1748967606257,14.50447907,161.66,161.56,5.67500454]
[1748967606465,9.58720271,161.63,161.56,2.034]
[1748967606958,9.58720271,161.63,161.55,41.68720271]
[1748967607165,9.63311744,161.61,161.57,0.04335614]
[1748967607359,9.58720271,161.59,161.57,0.04335614]
[1748967607667,9.58720271,161.59,161.49,32.1]
[1748967607957,14.48988443,161.6,161.49,32.1]
[1748967607958,9.58720271,161.55,161.52,6.1868]
[1748967608348,9.58720271,161.55,161.49,32.1]
[1748967608349,9.58720271,161.55,161.53,6.1866]
[1748967608553,15.77320271,161.55,161.52,0.03957987]
[1748967608858,9.6292812,161.55,161.52,0.03957987]
[1748967609459,9.58720271,161.53,161.52,0.03957987]
[1748967611257,0.04207849,161.55,161.52,0.03957987]
[1748967611456,0.04207849,161.55,161.54,6.1864]
[1748967613262,0.04207849,161.55,161.53,6.1866]
[1748967613462,0.04207849,161.55,161.52,0.03957987]
[1748967613658,0.04207849,161.55,161.54,6.1864]
[1748967614370,0.04207849,161.55,161.53,6.1866]
[1748967614863,0.04207849,161.55,161.52,0.03957987]
[1748967614864,41.7292812,161.55,161.52,0.03957987]
[1748967615169,47.9154812,161.55,161.52,0.03957987]
[1748967615367,32.14207849,161.55,161.52,0.03957987]
[1748967616265,32.14207849,161.55,161.54,6.1864]
[1748967616461,32.14207849,161.55,161.52,0.03957987]
[1748967617867,32.14207849,161.55,161.53,6.1865]
[1748967618769,41.7292812,161.55,161.52,0.03957987]
[1748967618975,9.58720271,161.53,161.52,0.03957987]
[1748967619268,41.7292812,161.55,161.52,0.03957987]
[1748967619474,32.14207849,161.55,161.52,0.03957987]
[1748967619772,38.32827849,161.55,161.52,6.22667987]
[1748967620475,38.32827849,161.55,161.52,0.03957987]
[1748967620873,6.1864,161.54,161.52,0.03957987]
[1748967621173,32.14207849,161.55,161.52,0.03957987]
[1748967621477,6.1864,161.54,161.52,0.03957987]
[1748967622872,32.14207849,161.55,161.53,6.1868]
[1748967623075,32.14207849,161.55,161.52,0.03957987]
[1748967623475,32.14207849,161.55,161.53,6.1868]
[1748967623683,32.14207849,161.55,161.52,0.03957987]
[1748967623884,32.14207849,161.55,161.52,6.22647987]
[1748967624181,32.14207849,161.55,161.52,0.03957987]
[1748967624182,38.32837849,161.55,161.52,0.03957987]
[1748967624979,38.32837849,161.55,161.52,6.22667987]
[1748967625281,32.14207849,161.55,161.52,0.03957987]
[1748967625682,38.32807849,161.55,161.52,0.03957987]
[1748967625884,32.14207849,161.55,161.52,0.03957987]
[1748967626085,9.58720271,161.54,161.52,0.03957987]
[1748967626382,9.58720271,161.54,161.39,547.4813663]
[1748967626383,6.1881,161.5,161.43,9.58720271]
[1748967626972,41.70720271,161.51,161.43,9.58720271]
[1748967627274,0.04757321,161.49,161.45,9.63018116]
[1748967627985,0.04757321,161.49,161.48,6.1886]
[1748967633888,32.12,161.57,161.48,6.2]
[1748967634077,32.12,161.57,161.53,9.58720271]
[1748967634280,32.12,161.57,161.42,35.76100454]
[1748967634281,9.58720271,161.55,161.42,35.76100454]
[1748967634478,32.12,161.57,161.44,9.58720271]
[1748967634479,9.58720271,161.52,161.44,9.58720271]
[1748967634680,6.1877,161.51,161.44,9.58720271]
[1748967634886,9.58720271,161.52,161.46,0.04424871]
[1748967634887,0.04418961,161.5,161.46,0.04424871]
[1748967635486,0.04418961,161.5,161.49,6.1883]
[1748967636902,6.23228961,161.5,161.46,0.04424871]
[1748967637106,0.04418961,161.5,161.46,0.04424871]
[1748967637297,0.04418961,161.5,161.48,6.1883]
[1748967637797,0.04418961,161.5,161.49,6.1883]
[1748967643305,0.04418961,161.5,161.46,0.04424871]
[1748967645907,0.04418961,161.5,161.49,6.1883]
[1748967646107,32.12,161.57,161.49,11.55083287]
[1748967646312,32.12,161.57,161.51,9.58720271]
[1748967646615,6.1862,161.55,161.51,9.58720271]
[1748967646815,32.12,161.57,161.53,6.1867]
[1748967647116,32.16670012,161.57,161.53,6.23136299]
[1748967647303,6.1858,161.56,161.53,6.23136299]
[1748967648119,6.1862,161.55,161.53,0.04466299]
[1748967649001,6.1864,161.54,161.53,0.04466299]
[1748967649612,6.1874,161.52,161.49,6.1881]
[1748967650314,6.1876,161.51,161.49,6.1881]
[1748967650708,41.70720271,161.53,161.48,6.23390939]
[1748967650709,0.03926123,161.52,161.48,6.23390939]
[1748967651016,6.1882,161.5,161.48,0.04540939]
[1748967651308,0.03926123,161.52,161.48,0.04540939]
[1748967651910,6.22646123,161.52,161.49,6.1881]
[1748967652112,0.03926123,161.52,161.48,0.04540939]
[1748967652516,0.03926123,161.52,161.49,6.1882]
[1748967652816,0.03926123,161.52,161.48,0.04540939]
[1748967653220,0.03926123,161.52,161.5,6.1877]
[1748967653515,0.03926123,161.52,161.48,0.04540939]
[1748967653716,0.03926123,161.52,161.51,6.1875]
[1748967656216,0.03926123,161.52,161.49,6.1882]
[1748967656417,0.03926123,161.52,161.48,0.04540939]
[1748967656818,0.03926123,161.52,161.51,6.1875]
[1748967657522,6.22646123,161.52,161.5,6.1879]
[1748967658020,6.1877,161.51,161.48,6.23390939]
[1748967658217,6.1877,161.51,161.48,0.04540939]
[1748967658419,6.1877,161.51,161.48,6.23390939]
[1748967658620,9.62646394,161.52,161.48,6.23390939]
[1748967658917,9.62646394,161.52,161.49,6.188]
[1748967659119,15.81376394,161.52,161.49,6.188]
[1748967659320,0.03926123,161.52,161.48,0.04540939]
[1748967659621,0.03926123,161.52,161.51,6.1875]
[1748967661416,0.03926123,161.52,161.51,8.15445053]
[1748967661715,0.03926123,161.52,161.51,6.1875]
[1748967662920,0.03926123,161.52,161.48,11.6378121]
[1748967663219,0.03926123,161.52,161.48,9.6326121]
[1748967664021,0.03926123,161.52,161.51,6.1875]
[1748967664525,0.03926123,161.52,161.48,9.6326121]
[1748967664817,0.03926123,161.52,161.48,0.04540939]
[1748967665019,0.03926123,161.52,161.51,6.1876]
[1748967669719,5.02545029,161.52,161.48,0.04540939]
[1748967669920,0.03926123,161.52,161.48,9.6326121]
[1748967670521,0.03926123,161.52,161.51,6.1876]
[1748967676325,0.03926123,161.52,161.5,6.1877]
[1748967676524,0.03926123,161.52,161.48,0.04540939]
[1748967676525,4.98292981,161.51,161.48,0.04540939]
[1748967676725,0.03926123,161.52,161.48,0.04540939]
[1748967677028,11.17061852,161.51,161.48,6.23380939]
[1748967677227,6.1878,161.51,161.48,0.04540939]
[1748967677429,4.98267849,161.5,161.49,6.1883]
[1748967678131,32.13926123,161.52,161.51,6.1876]
[1748967678431,43.3098875,161.52,161.48,0.04540939]
[1748967678722,38.32666123,161.52,161.49,6.1881]
[1748967679029,6.1877,161.51,161.49,6.1881]
[1748967679227,32.13926123,161.52,161.48,0.04540939]
[1748967680829,32.13926123,161.52,161.5,6.1877]
[1748967681031,38.32656123,161.52,161.5,6.1877]
[1748967681328,38.32656123,161.52,161.49,6.1881]
[1748967681828,38.32656123,161.52,161.48,0.04540939]
[1748967681829,4.98298992,161.51,161.48,6.23400939]
[1748967682029,32.13926123,161.52,161.48,6.23400939]
[1748967682227,4.98264882,161.51,161.48,6.23400939]
[1748967682525,6.1878,161.51,161.48,6.23400939]
[1748967683130,4.98257232,161.5,161.48,6.23400939]
[1748967683327,6.1878,161.51,161.48,6.23400939]
[1748967683629,4.98270333,161.5,161.48,0.04540939]
[1748967683928,6.1878,161.51,161.48,6.23380939]
[1748967684131,4.98233894,161.5,161.48,6.23380939]
[1748967684432,4.98233894,161.49,161.48,6.23380939]
[1748967684730,38.32656123,161.52,161.48,6.23380939]
[1748967684731,38.32656123,161.52,161.48,0.04540939]
[1748967684930,4.98569326,161.51,161.48,0.04540939]
[1748967685133,4.98569326,161.5,161.49,6.1882]
[1748967685724,4.98569326,161.5,161.48,0.04540939]
[1748967685933,32.13926123,161.52,161.48,0.04540939]
[1748967685934,4.98569326,161.49,161.48,0.04540939]
[1748967686228,6.1876,161.51,161.48,6.23410939]
[1748967686425,4.98532924,161.5,161.48,6.23410939]
[1748967686628,32.13926123,161.52,161.48,6.23410939]
[1748967686829,11.17327602,161.51,161.48,6.23410939]
[1748967687030,0.03926123,161.52,161.5,9.58720271]
[1748967687428,38.2336,161.59,161.55,6.1857]
[1748967687734,43.97471642,161.59,161.53,9.58720271]
[1748967688230,38.2336,161.59,161.53,9.58720271]
[1748967688437,0.0394694,161.58,161.54,0.04289492]
[1748967689138,0.0394694,161.58,161.55,6.1859]
[1748967690235,0.0394694,161.58,161.54,6.22909492]
[1748967690738,6.1855,161.57,161.54,6.22909492]
[1748967692133,0.0394694,161.58,161.54,0.04289492]
[1748967693132,6.2245694,161.58,161.54,0.04289492]
[1748967693534,6.2245694,161.58,161.55,6.1858]
[1748967693735,6.1853,161.57,161.54,0.04289492]
[1748967694037,0.0394694,161.58,161.54,0.04289492]
[1748967694236,6.1859,161.56,161.54,0.04289492]
[1748967694544,9.62667211,161.58,161.54,6.22899492]
[1748967694742,6.1855,161.57,161.54,6.22899492]
[1748967695643,6.1857,161.56,161.54,6.22899492]
[1748967696142,6.1857,161.56,161.54,0.04289492]
[1748967696345,6.186,161.55,161.54,0.04289492]
[1748967697742,6.1877,161.51,161.46,35.72100454]
[1748967698041,6.1877,161.51,161.46,32.08]
[1748967698345,6.1877,161.51,161.48,6.1884]
[1748967698644,9.58720271,161.52,161.48,0.04446597]
[1748967698840,0.04349362,161.51,161.5,6.1877]
[1748967699144,0.04349362,161.51,161.48,0.04446597]
[1748967699546,6.23109362,161.51,161.48,0.04446597]
[1748967699743,0.04349362,161.51,161.48,0.04446597]
[1748967699942,0.04349362,161.51,161.48,6.23306597]
[1748967700141,6.23129362,161.51,161.48,6.23306597]
[1748967700544,6.23129362,161.51,161.48,0.04446597]
[1748967700941,6.23129362,161.51,161.48,6.23306597]
[1748967701140,0.04349362,161.51,161.48,0.04446597]
[1748967702145,0.04349362,161.51,161.49,6.1883]
[1748967702646,0.04349362,161.51,161.48,0.04446597]
[1748967702846,46.61703168,161.5,161.48,0.04446597]
[1748967703151,4.94883366,161.49,161.41,5.68640454]
[1748967703350,41.66720271,161.5,161.41,2.0454]
[1748967703351,9.58720271,161.46,161.41,2.0454]
[1748967703952,0.04497508,161.45,161.44,6.19]
[1748967709052,0.04497508,161.45,161.43,6.1905]
[1748967709948,0.04497508,161.45,161.44,6.1902]
[1748967710753,0.04497508,161.45,161.43,6.1904]
[1748967711244,0.04497508,161.45,161.44,6.1902]
[1748967713757,0.04497508,161.45,161.43,6.1904]
[1748967714061,0.04497508,161.45,161.42,0.0396277]
[1748967714252,0.04497508,161.45,161.44,6.1902]
[1748967716364,0.04497508,161.45,161.43,6.1904]
[1748967716562,0.04497508,161.45,161.42,0.0396277]
[1748967716759,0.04497508,161.45,161.44,6.1902]
[1748967717666,0.04497508,161.45,161.43,6.1904]
[1748967718067,0.04497508,161.45,161.42,0.0396277]
[1748967718461,0.04497508,161.45,161.44,6.1902]
[1748967718765,36.4449,161.5,161.43,9.58720271]
[1748967718766,37.01958459,161.5,161.43,9.58720271]
[1748967718967,6.1885,161.49,161.46,6.1894]
[1748967719666,0.04083233,161.49,161.46,0.04552175]
[1748967720164,6.1889,161.48,161.46,0.04552175]
[1748967720963,6.22913233,161.49,161.46,6.23482175]
[1748967721361,6.22913233,161.49,161.46,0.04552175]
[1748967721362,6.1888,161.48,161.46,0.04552175]
[1748967722461,6.1891,161.47,161.46,0.04552175]
[1748967722662,0.04083233,161.49,161.46,0.04552175]
[1748967723562,6.22933233,161.49,161.46,6.23482175]
[1748967723868,0.04083233,161.49,161.46,0.04552175]
[1748967724065,14.56795979,161.49,161.46,0.04552175]
[1748967724465,6.1891,161.47,161.46,0.04552175]
[1748967724671,14.56795979,161.49,161.46,0.04552175]
[1748967724871,14.5681376,161.49,161.46,0.04552175]
[1748967725367,14.5681376,161.49,161.39,4.2533]
[1748967725368,9.58720271,161.47,161.39,4.2533]
[1748967725767,15.77650271,161.47,161.4,9.58720271]
[1748967726163,14.52730527,161.49,161.4,9.58720271]
[1748967726358,0.04070667,161.46,161.45,6.1896]
[1748967731073,0.04070667,161.46,161.43,0.04451251]
[1748967731574,9.58720271,161.45,161.37,2.55397415]
[1748967731767,9.58720271,161.41,161.37,2.55397415]
[1748967731962,32.06,161.41,161.37,8.74647415]
[1748967732168,41.64720271,161.41,161.37,2.55397415]
[1748967732368,32.06,161.41,161.37,2.55397415]
[1748967732576,32.09973295,161.41,161.37,2.59661132]
[1748967733174,0.03973295,161.41,161.4,6.1917]
[1748967736273,32.06,161.47,161.45,6.1897]
[1748967736467,32.06,161.47,161.41,9.58720271]
[1748967737369,0.04039452,161.46,161.43,6.1905]
[1748967737567,0.04039452,161.46,161.42,0.03956884]
[1748967738777,0.04039452,161.46,161.43,6.1905]
[1748967738778,6.22989452,161.46,161.43,6.1905]
[1748967739167,0.04039452,161.46,161.44,6.1901]
[1748967739869,6.22989452,161.46,161.43,6.1903]
[1748967740082,0.04039452,161.46,161.42,0.03956884]
[1748967740269,0.04039452,161.46,161.42,9.62677155]
[1748967740973,0.04039452,161.46,161.44,6.1899]
[1748967741380,0.04039452,161.46,161.42,9.62677155]
[1748967741976,0.04039452,161.46,161.44,6.19]
[1748967742177,0.04039452,161.46,161.42,9.62677155]
[1748967743072,0.04039452,161.46,161.45,6.1898]
[1748967744277,0.04039452,161.46,161.44,9.58720271]
[1748967744278,32.06,161.5,161.48,6.1883]
[1748967744479,32.06,161.5,161.46,9.58720271]
[1748967744880,32.06,161.5,161.49,6.1883]
[1748967745478,0.04467647,161.51,161.5,6.1879]
[1748967746486,32.06,161.57,161.5,9.58720271]
[1748967746685,32.06,161.57,161.52,9.58720271]
[1748967746686,4.93878772,161.56,161.52,9.58720271]
[1748967746886,4.93878772,161.55,161.52,9.58720271]
[1748967747089,32.06,161.57,161.56,6.1856]
[1748967747381,36.99940179,161.57,161.56,6.1856]
[1748967747682,32.06,161.57,161.56,6.1856]
[1748967747887,4.98021285,161.58,161.57,6.1852]
[1748967748084,0.04263983,161.58,161.57,6.1852]
[1748967750184,0.04263983,161.58,161.55,0.03955355]
[1748967750185,6.1856,161.56,161.55,0.03955355]
[1748967750488,132.15625515,161.56,161.45,41.67625515]
[1748967750681,38.2825,161.55,161.47,9.61625515]
[1748967750882,32.06,161.55,161.49,9.61625515]
[1748967751384,6.23157729,161.54,161.5,6.23360149]
[1748967751983,6.1868,161.53,161.5,0.04580149]
[1748967752176,9.66123244,161.54,161.5,0.04580149]
[1748967752380,9.61625515,161.52,161.5,0.04580149]
[1748967752882,0.04497729,161.54,161.5,0.04580149]
[1748967754087,0.04497729,161.54,161.51,6.1872]
[1748967754291,0.04497729,161.54,161.5,9.66205664]
[1748967754689,0.04497729,161.54,161.53,6.1867]
[1748967755890,0.04497729,161.54,161.53,15.80295515]
[1748967756989,0.04497729,161.54,161.53,6.1867]
[1748967757193,0.04497729,161.54,161.53,15.80295515]
[1748967759493,0.04497729,161.54,161.52,6.187]
[1748967759697,0.04497729,161.54,161.51,9.61625515]
[1748967760301,0.04497729,161.54,161.5,9.66205664]
[1748967760499,0.04497729,161.54,161.5,15.84985664]
[1748967760699,0.04497729,161.54,161.5,6.23360149]
[1748967760900,0.04497729,161.54,161.5,0.04580149]
[1748967761202,0.04497729,161.54,161.52,6.1869]
[1748967762403,0.04497729,161.54,161.53,6.1867]
[1748967767609,0.04497729,161.54,161.5,0.04580149]
[1748967769001,0.04497729,161.54,161.53,6.1867]
[1748967771705,32.06,161.58,161.57,6.1852]
[1748967772002,32.06,161.58,161.52,9.61625515]
[1748967772003,32.7,161.61,161.56,9.61625515]
[1748967772306,32.7,161.61,161.51,6.0732]
[1748967772510,32.7,161.61,161.53,9.61625515]
[1748967772511,42.31625515,161.61,161.53,9.61625515]
[1748967772805,6.22716146,161.59,161.55,0.04502253]
[1748967773013,9.65891661,161.59,161.55,0.04502253]
[1748967773508,6.1853,161.57,161.55,0.04502253]
[1748967774400,9.65891661,161.59,161.55,0.04502253]
[1748967774401,6.1856,161.56,161.55,0.04502253]
[1748967776715,38.8854,161.57,161.55,0.04502253]
[1748967777209,32.7,161.57,161.55,0.04502253]
[1748967777412,6.1856,161.56,161.55,0.04502253]
[1748967778906,6.187,161.53,161.49,3.64100454]
[1748967779105,42.31625515,161.57,161.47,45.93725969]
[1748967779106,9.61625515,161.55,161.47,45.93725969]
[1748967779306,9.61625515,161.55,161.5,6.1878]
[1748967779503,6.1881,161.5,161.46,3.64100454]
[1748967779702,9.61625515,161.53,161.44,3.64100454]
[1748967779703,32.68,161.52,161.44,3.64100454]
[1748967779911,0.04291063,161.5,161.48,6.1886]
[1748967780107,0.04291063,161.5,161.46,0.04058893]
[1748967780707,0.04291063,161.5,161.47,6.1889]
[1748967781011,9.61625515,161.49,161.46,0.04058893]
[1748967781312,6.189,161.47,161.46,0.04058893]
[1748967782608,9.61625515,161.49,161.46,0.04058893]
[1748967782609,38.8888,161.48,161.46,0.04058893]
[1748967783015,32.7,161.48,161.46,0.04058893]
[1748967783316,6.189,161.47,161.46,0.04058893]
[1748967785817,38.8888,161.48,161.46,0.04058893]
[1748967786017,32.7,161.48,161.46,0.04058893]
[1748967787216,38.889,161.48,161.46,0.04058893]
[1748967787417,32.7,161.48,161.46,0.04058893]
[1748967788011,38.8889,161.48,161.46,0.04058893]
[1748967788213,32.7,161.48,161.46,0.04058893]
[1748967788920,6.189,161.47,161.46,0.04058893]
[1748967790414,32.7,161.48,161.39,9.61625515]
[1748967790415,6.1899,161.45,161.39,9.61625515]
[1748967791517,0.04159815,161.44,161.4,0.04442163]
[1748967791916,0.04159815,161.44,161.42,6.1907]
[1748967792119,0.04159815,161.44,161.4,0.04442163]
[1748967792525,0.04159815,161.44,161.43,6.1906]
[1748967796127,0.04159815,161.44,161.42,6.1907]
[1748967797525,0.04159815,161.44,161.41,6.1912]
[1748967798129,6.23179815,161.44,161.41,6.1912]
[1748967798324,0.04159815,161.44,161.42,6.1909]
[1748967798524,0.04159815,161.44,161.4,0.04442163]
[1748967799834,0.04159815,161.44,161.43,6.1906]
[1748967800729,0.04159815,161.44,161.41,15.80745515]
[1748967801132,0.04159815,161.44,161.41,9.61625515]
[1748967801534,0.04159815,161.44,161.42,6.1908]
[1748967802236,0.04159815,161.44,161.43,6.1906]
[1748967802435,0.04159815,161.44,161.41,9.61625515]
[1748967803430,0.04159815,161.44,161.42,6.1909]
[1748967803631,4.1788,161.51,161.43,9.61625515]
[1748967803835,36.8388,161.51,161.43,9.61625515]
[1748967804036,36.8388,161.51,161.45,6.1895]
[1748967804729,36.8388,161.51,161.46,0.04069784]
[1748967804730,0.04279617,161.5,161.46,0.04069784]
[1748967804923,6.1883,161.49,161.46,0.04069784]
[1748967805327,0.04279617,161.5,161.46,0.04069784]
[1748967806132,6.189,161.48,161.46,0.04069784]
[1748967806331,0.04279617,161.5,161.46,0.04069784]
[1748967806732,6.189,161.47,161.46,0.04069784]
[1748967808036,42.27625515,161.47,161.4,6.1917]
[1748967808232,9.61625515,161.44,161.4,6.1917]
[1748967808626,15.80665515,161.44,161.41,6.1912]
[1748967808829,15.84668763,161.44,161.41,6.2372142]
[1748967809430,9.65628763,161.44,161.41,0.0460142]
[1748967809834,6.1909,161.43,161.41,0.0460142]
[1748967811335,15.84668763,161.44,161.41,6.2373142]
[1748967812435,9.65628763,161.44,161.41,0.0460142]
[1748967812630,9.61625515,161.42,161.41,0.0460142]
[1748967813032,0.04003248,161.44,161.41,0.0460142]
[1748967813229,9.61625515,161.43,161.41,0.0460142]
[1748967813639,6.1909,161.42,161.41,0.0460142]
[1748967813939,9.61625515,161.43,161.41,0.0460142]
[1748967814737,0.04003248,161.44,161.41,0.0460142]
[1748967815239,0.04003248,161.44,161.43,6.1906]
[1748967816139,42.27625515,161.5,161.47,6.1889]
[1748967816543,42.27625515,161.5,161.42,3.64100454]
[1748967816742,42.27625515,161.5,161.46,6.1894]
[1748967817040,42.32123629,161.5,161.46,0.04321196]
[1748967817240,32.70498114,161.5,161.46,0.04321196]
[1748967817443,32.70498114,161.5,161.49,6.1883]
[1748967817635,32.70498114,161.5,161.46,0.04321196]
[1748967818339,42.32123629,161.5,161.46,0.04321196]
[1748967818934,6.1885,161.49,161.46,0.04321196]
[1748967819139,42.32123629,161.5,161.46,0.04321196]
[1748967819336,48.50933629,161.5,161.46,0.04321196]
[1748967819535,42.32123629,161.5,161.46,0.04321196]
[1748967820342,6.189,161.47,161.46,0.04321196]
[1748967821437,6.189,161.47,161.4,19.44875969]
[1748967821438,4.94548032,161.47,161.4,19.44875969]
[1748967821742,9.61625515,161.46,161.41,1.96741007]
[1748967821945,6.1904,161.44,161.41,1.96741007]
[1748967822343,6.1904,161.44,161.41,8.15861007]
[1748967822643,0.04685214,161.44,161.41,0.04379389]
[1748967823142,0.04685214,161.44,161.43,6.1906]
[1748967824038,0.04685214,161.44,161.43,8.1577179]
[1748967824443,0.04685214,161.44,161.43,11.79872244]
[1748967825243,32.66,161.5,161.43,5.60812244]
[1748967825541,4.96394232,161.49,161.44,9.61625515]
[1748967825735,4.96394232,161.48,161.44,9.61625515]
[1748967825939,32.66,161.5,161.44,9.61625515]
[1748967826137,4.96412283,161.49,161.44,9.61625515]
[1748967826341,5.00387697,161.48,161.45,0.04400096]
[1748967826544,0.03975414,161.48,161.45,0.04400096]
[1748967826942,14.58059276,161.47,161.45,0.04400096]
[1748967827144,4.96433761,161.46,161.45,0.04400096]
[1748967827349,11.15373761,161.46,161.45,0.04400096]
[1748967828251,11.1526444,161.46,161.45,0.04400096]
[1748967828451,6.1907,161.43,161.4,6.1916]
[1748967829545,9.61625515,161.42,161.4,0.04018758]
[1748967831254,0.04019703,161.43,161.4,0.04018758]
[1748967831953,0.04019703,161.43,161.4,6.23178758]
[1748967832351,0.04019703,161.43,161.41,6.1913]
[1748967833445,0.04019703,161.43,161.42,6.1909]
[1748967836255,4.95429815,161.47,161.41,32.42]
[1748967836455,4.95429815,161.46,161.41,32.42]
[1748967836759,9.61625515,161.49,161.41,32.42]
[1748967837049,4.95538724,161.48,161.41,32.42]
[1748967837250,0.04296822,161.46,161.43,0.04346994]
[1748967837451,9.61625515,161.45,161.43,0.04346994]
[1748967837656,15.80635515,161.45,161.43,0.04346994]
[1748967837860,4.95478822,161.44,161.43,0.04346994]
[1748967838058,9.61625515,161.45,161.43,0.04346994]
[1748967839252,15.80615515,161.45,161.43,0.04346994]
[1748967839650,4.9569792,161.44,161.43,0.04346994]
[1748967840560,15.80605515,161.45,161.43,0.04346994]
[1748967840752,4.95816961,161.44,161.43,0.04346994]
[1748967841363,4.95816961,161.44,161.43,6.23406994]
[1748967841557,0.04296822,161.46,161.43,6.23406994]
[1748967841558,0.04296822,161.46,161.43,0.04346994]
[1748967841863,4.96023762,161.45,161.43,0.04346994]
[1748967842059,0.04296822,161.46,161.43,6.23386994]
[1748967843255,0.04296822,161.46,161.43,0.04346994]
[1748967843957,0.04296822,161.46,161.45,6.1898]
[1748967845456,0.04296822,161.46,161.45,15.80605515]
[1748967845754,0.04296822,161.46,161.45,6.1898]
[1748967846660,0.04296822,161.46,161.43,0.04346994]
[1748967847361,0.04296822,161.46,161.45,6.1898]
[1748967849166,42.18368148,161.53,161.45,9.61625515]
[1748967849355,4.91960398,161.52,161.47,9.61625515]
[1748967849558,46.06235515,161.53,161.47,9.61625515]
[1748967849761,4.92238358,161.52,161.46,32.2]
[1748967850059,0.04211442,161.51,161.48,6.1883]
[1748967850861,4.92212204,161.5,161.47,0.04633428]
[1748967851066,6.22971442,161.51,161.47,0.04633428]
[1748967851264,4.92354011,161.5,161.47,0.04633428]
[1748967851465,6.22971442,161.51,161.47,0.04633428]
[1748967851661,11.11045429,161.5,161.47,0.04633428]
[1748967851862,0.04211442,161.51,161.47,0.04633428]
[1748967852066,4.92196105,161.5,161.47,0.04633428]
[1748967852364,6.1886,161.48,161.47,0.04633428]
[1748967853868,11.11205565,161.48,161.47,0.04633428]
[1748967854066,6.1886,161.48,161.47,0.04633428]
[1748967854769,11.11176862,161.48,161.47,0.04633428]
[1748967855364,4.92316862,161.48,161.47,0.04633428]
[1748967855960,11.11176862,161.48,161.47,0.04633428]
[1748967856968,6.1899,161.45,161.4,41.81625515]
[1748967857271,14.53942377,161.47,161.43,6.1903]
[1748967857463,11.11286862,161.46,161.43,6.1903]
[1748967857670,6.1897,161.46,161.43,6.1903]
[1748967857968,0.04463099,161.46,161.43,0.04463393]
[1748967858470,0.04463099,161.46,161.44,6.19]
[1748967860169,0.04463099,161.46,161.45,6.1898]
[1748967860971,0.04463099,161.46,161.44,6.19]
[1748967861173,0.04463099,161.46,161.43,0.04463393]
[1748967861483,0.04463099,161.46,161.45,6.1898]
[1748967864374,0.04463099,161.46,161.44,6.1901]
[1748967864772,0.04463099,161.46,161.43,0.04463393]
[1748967865974,0.04463099,161.46,161.44,6.19]
[1748967866376,0.04463099,161.46,161.43,0.04463393]
[1748967866377,6.23443099,161.46,161.43,0.04463393]
[1748967867583,9.66088614,161.46,161.43,0.04463393]
[1748967867787,4.92264223,161.45,161.43,0.04463393]
[1748967867982,9.66088614,161.46,161.43,0.04463393]
[1748967868184,11.112741,161.45,161.43,0.04463393]
[1748967868374,6.1901,161.45,161.43,0.04463393]
[1748967868577,9.61625515,161.44,161.43,0.04463393]
[1748967868776,14.53863654,161.44,161.43,0.04463393]
[1748967869188,15.85048614,161.46,161.43,6.23523393]
[1748967869387,4.92275145,161.45,161.43,6.23523393]
[1748967869588,4.92275145,161.44,161.43,6.23523393]
[1748967869783,4.92275145,161.44,161.43,0.04463393]
[1748967870491,4.92275145,161.44,161.43,6.23523393]
[1748967870984,4.92275145,161.44,161.43,0.04463393]
[1748967871488,4.92275145,161.44,161.43,6.23523393]
[1748967872388,0.04463099,161.46,161.43,0.04463393]
[1748967872782,0.04463099,161.46,161.44,6.1898]
[1748967872982,0.04463099,161.46,161.43,0.04463393]
[1748967873784,0.04463099,161.46,161.45,6.1898]
[1748967873978,4.96650593,161.46,161.45,6.1898]
[1748967874181,4.96650593,161.46,161.43,0.04463393]
[1748967874385,0.04463099,161.46,161.44,6.19]
[1748967874695,0.04463099,161.46,161.43,0.04463393]
[1748967875195,0.04463099,161.46,161.45,6.1898]
[1748967875491,4.96809082,161.46,161.45,6.1898]
[1748967876389,4.96809082,161.46,161.44,6.1901]